bitfinex/quotes_BTCUSD_20250119
["timestamp","ask_amount","ask_price","bid_price","bid_amount"]
[1737257917552,1.06263041,104820.0,104810.0,0.00633914]
[1737257917750,1.16835041,104820.0,104810.0,0.00633914]
[1737257918041,1.09489421,104820.0,104810.0,0.00633914]
[1737257918440,0.88160038,104820.0,104810.0,0.00633914]
[1737257918644,0.95505658,104820.0,104810.0,0.00633914]
[1737257919100,0.85505658,104820.0,104810.0,0.00633914]
[1737257919309,0.86973418,104820.0,104810.0,0.00633914]
[1737257919851,0.58323525,104820.0,104810.0,0.00633914]
[1737257921400,0.65669145,104820.0,104810.0,0.00633914]
[1737257930519,0.55097145,104820.0,104810.0,0.00633914]
[1737257930693,0.46727011,104820.0,104810.0,0.00633914]
[1737257930957,0.54072631,104820.0,104810.0,0.00633914]
[1737257933222,0.0958293,104820.0,104810.0,0.00633914]
[1737257933430,0.0958293,104820.0,104810.0,0.10174914]
[1737257933635,0.0958293,104820.0,104810.0,0.1120361]
[1737257934034,0.0958293,104820.0,104810.0,0.0166261]
[1737257935552,0.39292631,104820.0,104810.0,0.0166261]
[1737257936496,0.39292631,104820.0,104810.0,0.01792019]
[1737257945586,0.3676919,104820.0,104810.0,0.01792019]
[1737257945798,0.1327,104800.0,104790.0,0.08550398]
[1737257946011,0.72774518,104800.0,104790.0,0.08550398]
[1737257946213,0.62774518,104800.0,104790.0,0.08628818]
[1737257946404,0.74998599,104800.0,104790.0,0.08628818]
[1737257946853,0.85038599,104800.0,104790.0,0.08628818]
[1737257947069,0.85038599,104800.0,104790.0,0.04811618]
[1737257947276,0.378128,104790.0,104780.0,0.00089838]
[1737257947411,0.62450191,104790.0,104780.0,0.00089838]
[1737257948411,0.87950893,104790.0,104780.0,0.00089838]
[1737257949072,0.88522893,104790.0,104780.0,0.00089838]
[1737257949532,0.88522893,104790.0,104780.0,0.00150474]
[1737257950156,1.01347674,104790.0,104780.0,0.00150474]
[1737257950747,1.01347674,104790.0,104780.0,0.00089838]
[1737257950960,1.00775674,104790.0,104780.0,0.00089838]
[1737257951167,1.11271755,104790.0,104780.0,0.00089838]
[1737257951532,1.13174138,104790.0,104780.0,0.00089838]
[1737257952169,1.03250057,104790.0,104780.0,0.00089838]
[1737257952363,1.16015353,104790.0,104780.0,0.00089838]
[1737257953458,1.17001716,104790.0,104780.0,0.00089838]
[1737257953644,1.16429716,104790.0,104780.0,0.00698215]
[1737257953846,1.17001716,104790.0,104780.0,0.00698215]
[1737257954834,1.04215476,104790.0,104780.0,0.00698215]
[1737257955039,1.04215476,104790.0,104780.0,0.00089838]
[1737257957218,1.14139557,104790.0,104780.0,0.00089838]
[1737257957422,1.04215476,104790.0,104780.0,0.00089838]
[1737257958562,1.04215476,104790.0,104780.0,0.00698215]
[1737257960413,0.87181928,104790.0,104780.0,0.00698215]
[1737257961363,0.87224738,104790.0,104780.0,0.00698215]
[1737257962171,0.86652738,104790.0,104780.0,0.00698215]
[1737257962384,0.87224738,104790.0,104780.0,0.00698215]
[1737257962580,0.97224738,104790.0,104780.0,0.00698215]
[1737257962793,0.87224738,104790.0,104780.0,0.00698215]
[1737257963015,0.86652738,104790.0,104780.0,0.00698215]
[1737257963224,0.87224738,104790.0,104780.0,0.00698215]
[1737257963768,0.97224738,104790.0,104780.0,0.00698215]
[1737257964232,0.84459442,104790.0,104780.0,0.00698215]
[1737257966144,0.75953747,104790.0,104780.0,0.00698215]
[1737257970002,0.79245077,104790.0,104780.0,0.00698215]
[1737257970623,0.68253747,104790.0,104780.0,0.00758851]
[1737257971367,0.76759442,104790.0,104780.0,0.00758851]
[1737257972066,1.06558286,104790.0,104780.0,0.00758851]
[1737257973117,1.05986286,104790.0,104780.0,0.00758851]
[1737257973426,1.06558286,104790.0,104780.0,0.00758851]
[1737257973634,1.16482367,104790.0,104780.0,0.00758851]
[1737257974552,1.06558286,104790.0,104780.0,0.00758851]
[1737257974693,1.06558286,104790.0,104780.0,0.00089838]
[1737257981746,1.27850221,104790.0,104780.0,0.00089838]
[1737257982897,1.19344526,104790.0,104780.0,0.00089838]
[1737257983467,1.1428571,104790.0,104780.0,0.00089838]
[1737257984053,1.01520414,104790.0,104780.0,0.00089838]
[1737257984854,0.8899392,104790.0,104780.0,0.00089838]
[1737257985062,0.79220784,104790.0,104780.0,0.00089838]
[1737257985260,0.79220784,104790.0,104780.0,0.00765859]
[1737257985261,0.62662421,104790.0,104780.0,0.00765859]
[1737257985535,0.63234421,104790.0,104780.0,0.00765859]
[1737257985724,0.62662421,104790.0,104780.0,0.00765859]
[1737257985921,0.5331034,104790.0,104780.0,0.00765859]
[1737257986252,0.36271852,104790.0,104780.0,0.00765859]
[1737257986614,0.8813318,104790.0,104780.0,0.00765859]
[1737257986775,0.73305933,104790.0,104780.0,0.00765859]
[1737257987131,0.52018938,104790.0,104780.0,0.00765859]
[1737257987333,0.39908938,104790.0,104780.0,0.00765859]
[1737257987478,0.41862552,104790.0,104780.0,0.01790911]
[1737257987685,0.5037735,104790.0,104780.0,0.01790911]
[1737257987910,0.5094935,104790.0,104780.0,0.01790911]
[1737257988516,0.5037735,104790.0,104780.0,0.01790911]
[1737257988780,0.5094935,104790.0,104780.0,0.01790911]
[1737257989313,0.5094935,104790.0,104780.0,0.00765859]
[1737257989728,0.63721547,104790.0,104780.0,0.00765859]
[1737257991791,0.80755095,104790.0,104780.0,0.01789819]
[1737257992401,1.10217956,104790.0,104780.0,0.01789819]
[1737257992584,1.22995093,104790.0,104780.0,0.01789819]
[1737257992785,1.15642232,104790.0,104780.0,0.01789819]
[1737257993176,1.15642232,104790.0,104780.0,0.00765859]
[1737257993459,1.11337189,104790.0,104780.0,0.00765859]
[1737257994173,0.85836487,104790.0,104780.0,0.00765859]
[1737257996486,0.90045254,104790.0,104780.0,0.00765859]
[1737257997606,0.97398115,104790.0,104780.0,0.00765859]
[1737257998332,0.90045254,104790.0,104780.0,0.00765859]
[1737258000220,0.91911084,104790.0,104780.0,0.00765859]
[1737258001002,1.1748441,104790.0,104780.0,0.00765859]
[1737258001220,0.9478441,104790.0,104780.0,0.00765859]
[1737258003856,1.42090126,104790.0,104780.0,0.00765859]
[1737258004816,1.29480659,104790.0,104780.0,0.00765859]
[1737258006176,1.38869661,104790.0,104780.0,0.00765859]
[1737258007349,1.33818709,104790.0,104780.0,0.00765859]
[1737258013218,0.86614178,104790.0,104780.0,0.00765859]
[1737258015268,1.15302468,104790.0,104780.0,0.00765859]
[1737258017533,1.33799032,104790.0,104780.0,0.00765859]
[1737258017985,1.43723113,104790.0,104780.0,0.00765859]
[1737258018188,1.33799032,104790.0,104780.0,0.00765859]
[1737258018636,0.61012291,104790.0,104780.0,0.00765859]
[1737258019526,0.89700581,104790.0,104780.0,0.00765859]
[1737258021206,1.15298427,104790.0,104780.0,0.00765859]
[1737258022980,1.3380026,104790.0,104780.0,0.00765859]
[1737258023209,1.48551726,104790.0,104780.0,5.9e-07]
[1737258023415,1.43724341,104790.0,104780.0,0.00582958]
[1737258023632,0.245438,104780.0,104770.0,0.00089859]
[1737258023778,0.44122651,104780.0,104770.0,0.00089859]
[1737258024015,0.46422651,104780.0,104770.0,0.00089859]
[1737258025096,0.54042651,104780.0,104770.0,0.00678655]
[1737258025582,1.08328014,104780.0,104770.0,0.00678655]
[1737258026326,1.08900014,104780.0,104770.0,0.00678655]
[1737258026562,0.80211724,104780.0,104770.0,0.00678655]
[1737258026765,0.80199475,104780.0,104770.0,0.00678655]
[1737258026966,0.90199475,104780.0,104770.0,0.00678655]
[1737258027207,0.80199475,104780.0,104770.0,0.00678655]
[1737258030063,0.90123556,104780.0,104770.0,0.00678655]
[1737258030913,0.91120413,104780.0,104770.0,0.00678655]
[1737258032456,0.95880413,104780.0,104770.0,0.00678655]
[1737258032622,0.85956332,104780.0,104770.0,0.00678655]
[1737258033551,0.95956332,104780.0,104770.0,0.00678655]
[1737258033954,0.95896939,104780.0,104770.0,0.00678655]
[1737258035283,0.85896939,104780.0,104770.0,0.00678655]
[1737258035821,0.85324939,104780.0,104770.0,0.00678655]
[1737258036011,0.85896939,104780.0,104770.0,0.00678655]
[1737258036209,0.95896939,104780.0,104770.0,0.00678655]
[1737258037176,0.85896939,104780.0,104770.0,0.00678655]
[1737258037334,0.89377486,104780.0,104770.0,0.00678655]
[1737258038166,0.25,104760.0,104750.0,7e-08]
[1737258038367,0.394665,104750.0,104740.0,3.8e-07]
[1737258038567,0.394665,104750.0,104740.0,0.0001438]
[1737258038568,0.49390581,104750.0,104740.0,0.0001438]
[1737258038786,0.34470581,104750.0,104740.0,0.0001438]
[1737258039004,0.24297966,104750.0,104740.0,0.0001438]
[1737258039205,0.39297966,104750.0,104740.0,0.0001438]
[1737258040271,0.39297966,104750.0,104740.0,0.00869291]
[1737258040479,0.93583329,104750.0,104740.0,0.00869291]
[1737258040842,1.08410714,104750.0,104740.0,0.00869291]
[1737258041048,1.17032714,104750.0,104740.0,0.00869291]
[1737258041271,1.01138937,104750.0,104740.0,0.00869291]
[1737258041711,1.02110532,104750.0,104740.0,0.00869291]
[1737258042334,1.10644678,104750.0,104740.0,0.00869291]
[1737258042675,1.12342063,104750.0,104740.0,0.00869291]
[1737258042921,1.07514678,104750.0,104740.0,0.00869291]
[1737258043161,0.81917605,104750.0,104740.0,0.00869291]
[1737258043377,0.81456696,104750.0,104740.0,0.00869291]
[1737258043966,1.3288623,104750.0,104740.0,0.00869291]
[1737258044166,1.35186845,104750.0,104740.0,0.00869291]
[1737258044371,1.27566845,104750.0,104740.0,0.00869291]
[1737258044579,1.38138845,104750.0,104740.0,0.00869291]
[1737258044778,0.94068942,104750.0,104740.0,0.00869291]
[1737258044942,0.79068942,104750.0,104740.0,0.00869291]
[1737258045140,0.78496942,104750.0,104740.0,0.00869291]
[1737258045364,0.69068942,104750.0,104740.0,0.00869291]
[1737258045852,0.61688092,104750.0,104740.0,0.00869291]
[1737258046661,1.00043473,104750.0,104740.0,0.00869291]
[1737258047456,0.99471473,104750.0,104740.0,0.00869291]
[1737258047658,1.00043473,104750.0,104740.0,0.00869291]
[1737258052163,0.99821518,104750.0,104740.0,0.00869291]
[1737258052653,0.78514078,104750.0,104740.0,0.00869291]
[1737258053440,0.78556888,104750.0,104740.0,0.00869291]
[1737258056634,0.77984888,104750.0,104740.0,0.00869291]
[1737258056767,0.57261827,104750.0,104740.0,0.00869291]
[1737258056977,0.47261827,104750.0,104740.0,0.06959291]
[1737258057361,0.57261827,104750.0,104740.0,0.16506691]
[1737258057784,0.18906446,104750.0,104740.0,0.06959291]
[1737258058005,0.08906446,104750.0,104740.0,0.06959291]
[1737258058780,0.1004281,104750.0,104740.0,0.16602155]
[1737258058982,0.1004281,104750.0,104740.0,0.17623037]
[1737258059742,0.1958931,104750.0,104740.0,0.17527573]
[1737258060385,0.1958931,104750.0,104740.0,0.19161141]
[1737258063411,0.1958931,104750.0,104740.0,0.17527573]
[1737258064316,0.24416695,104750.0,104740.0,0.07980173]
[1737258064538,0.24416695,104750.0,104740.0,0.01890173]
[1737258064913,0.14416695,104750.0,104740.0,0.01890173]
[1737258065886,0.0958931,104750.0,104740.0,0.01890173]
[1737258069302,0.09156586,104750.0,104740.0,0.01890173]
[1737258069747,0.09156586,104750.0,104740.0,0.11437573]
[1737258071553,0.09156586,104750.0,104740.0,0.03523981]
[1737258074704,0.09156586,104750.0,104740.0,0.01890173]
[1737258076736,0.09199396,104750.0,104740.0,0.01890173]
[1737258077858,0.09199396,104750.0,104740.0,0.03525137]
[1737258079990,0.08007784,104750.0,104740.0,0.03525137]
[1737258083033,0.08007784,104750.0,104740.0,0.01890173]
[1737258083921,0.08007784,104750.0,104740.0,0.0194294]
[1737258090278,0.16297784,104750.0,104740.0,0.0194294]
[1737258090650,0.16297784,104750.0,104740.0,0.1149034]
[1737258090880,0.16297784,104750.0,104740.0,0.0194294]
[1737258091003,0.24821202,104750.0,104740.0,0.0194294]
[1737258094614,0.29391202,104750.0,104740.0,0.0194294]
[1737258095025,0.42176329,104750.0,104740.0,0.0194294]
[1737258096215,0.31351355,104750.0,104740.0,0.1149034]
[1737258096652,0.40897855,104750.0,104740.0,0.1149034]
[1737258096872,0.31351355,104750.0,104740.0,0.1149034]
[1737258099030,0.40897855,104750.0,104740.0,0.1149034]
[1737258099620,0.57944691,104750.0,104740.0,0.1149034]
[1737258100799,0.57944691,104750.0,104740.0,0.0194294]
[1737258101187,0.57944691,104750.0,104740.0,0.1149034]
[1737258102753,0.79252131,104750.0,104740.0,0.1149034]
[1737258104033,0.79252131,104750.0,104740.0,0.0194294]
[1737258107062,0.70728713,104750.0,104740.0,0.0194294]
[1737258108611,0.70728713,104750.0,104740.0,0.1149034]
[1737258109567,0.70728713,104750.0,104740.0,0.0194294]
[1737258114361,0.70728713,104750.0,104740.0,0.02917364]
[1737258114582,0.70728713,104750.0,104740.0,0.0194294]
[1737258116635,0.78488713,104750.0,104740.0,0.0194294]
[1737258123768,0.78488713,104750.0,104740.0,0.1149034]
[1737258125014,0.78488713,104750.0,104740.0,0.46164656]
[1737258125015,0.66182213,104750.0,104740.0,0.46164656]
[1737258125249,0.66182213,104750.0,104740.0,0.47331806]
[1737258125395,0.66182213,104750.0,104740.0,0.46310924]
[1737258125594,0.74759728,104750.0,104740.0,0.49293421]
[1737258126040,0.74759728,104750.0,104740.0,0.54120806]
[1737258126243,0.59759728,104750.0,104740.0,0.49293421]
[1737258126402,0.59759728,104750.0,104740.0,0.46310924]
[1737258127100,0.0004281,104750.0,104740.0,0.81492468]
[1737258127292,0.0004281,104750.0,104740.0,0.98599514]
[1737258127495,0.0004281,104750.0,104740.0,0.93772129]
[1737258127856,0.0004281,104750.0,104740.0,1.02357975]
[1737258129024,0.0004281,104750.0,104740.0,0.81026541]
[1737258129247,0.0004281,104750.0,104740.0,0.42507577]
[1737258130413,0.1504281,104750.0,104740.0,0.42507577]
[1737258130686,0.1504281,104750.0,104740.0,0.51089858]
[1737258131459,0.1504281,104750.0,104740.0,0.44999858]
[1737258132695,0.1504281,104750.0,104740.0,0.57873279]
[1737258133531,0.1504281,104750.0,104740.0,0.44999858]
[1737258134567,0.2743281,104750.0,104740.0,0.35075777]
[1737258136021,0.2743281,104750.0,104740.0,0.26493496]
[1737258144583,0.2743281,104750.0,104740.0,0.46072347]
[1737258144584,0.0004281,104750.0,104740.0,0.46072347]
[1737258145579,0.0004281,104750.0,104740.0,0.67528049]
[1737258146501,0.0004281,104750.0,104740.0,0.6916279]
[1737258148972,0.0004281,104750.0,104740.0,0.64335405]
[1737258149204,0.1504281,104750.0,104740.0,0.64335405]
[1737258149906,0.1504281,104750.0,104740.0,0.51461984]
[1737258155545,0.1504281,104750.0,104740.0,0.56289369]
[1737258156559,0.1504281,104750.0,104740.0,0.51461984]
[1737258157250,0.0004281,104750.0,104740.0,0.51461984]
[1737258157494,0.1504281,104750.0,104740.0,0.56289369]
[1737258157968,0.1504281,104750.0,104740.0,0.64335405]
[1737258158899,0.1504281,104750.0,104740.0,0.51461984]
[1737258160959,0.1504281,104750.0,104740.0,0.51264049]
[1737258161415,0.0004281,104750.0,104740.0,0.56091434]
[1737258161904,0.0004281,104750.0,104740.0,0.59072755]
[1737258162623,0.0004281,104750.0,104740.0,0.71946176]
[1737258163323,0.0004281,104750.0,104740.0,0.89110738]
[1737258164320,0.0004281,104750.0,104740.0,1.1056644]
[1737258164590,0.0004281,104750.0,104740.0,1.05739055]
[1737258164847,0.0004281,104750.0,104740.0,1.1056644]
[1737258166213,0.0004281,104750.0,104740.0,1.1895644]
[1737258167403,0.0004281,104750.0,104740.0,0.97500738]
[1737258171397,0.0004281,104750.0,104740.0,0.82268744]
[1737258175046,0.0004281,104750.0,104740.0,1.08015587]
[1737258177852,0.0004281,104750.0,104740.0,1.01925587]
[1737258178462,0.0004281,104750.0,104740.0,0.76178744]
[1737258181283,0.0004281,104750.0,104740.0,0.66523974]
[1737258181483,0.0825281,104750.0,104740.0,0.67118791]
[1737258181704,0.0825281,104750.0,104740.0,0.71946176]
[1737258182745,0.0825281,104750.0,104740.0,0.89109754]
[1737258182949,0.0004281,104750.0,104740.0,0.91409754]
[1737258183733,0.0004281,104750.0,104740.0,0.74246176]
[1737258184110,0.0825281,104750.0,104740.0,0.69418791]
[1737258184308,0.0825281,104750.0,104740.0,0.67118791]
[1737258189847,0.0825281,104750.0,104740.0,0.92865634]
[1737258191388,0.0825281,104750.0,104740.0,0.71409932]
[1737258192336,0.0825281,104750.0,104740.0,0.76237317]
[1737258195353,0.0825281,104750.0,104740.0,0.97708763]
[1737258196453,0.0825281,104750.0,104740.0,0.76237317]
[1737258198652,0.0825281,104750.0,104740.0,0.97710102]
[1737258200896,0.0825281,104750.0,104740.0,0.76237317]
[1737258204675,0.0825281,104750.0,104740.0,0.71409932]
[1737258204802,0.1295281,104750.0,104740.0,0.71409932]
[1737258205251,0.1295281,104750.0,104740.0,0.76237317]
[1737258207661,0.1295281,104750.0,104740.0,0.71409932]
[1737258209391,0.1295281,104750.0,104740.0,0.76237317]
[1737258210321,0.1295281,104750.0,104740.0,0.66582547]
[1737258210818,0.1295281,104750.0,104740.0,0.71409932]
[1737258211345,0.1295281,104750.0,104740.0,0.71430273]
[1737258211960,0.2795281,104750.0,104740.0,0.76541906]
[1737258212359,0.3249931,104750.0,104740.0,0.42070425]
[1737258212553,0.2295281,104750.0,104740.0,0.51617825]
[1737258212758,0.2295281,104750.0,104740.0,0.73100843]
[1737258213836,0.2295281,104750.0,104740.0,0.12950643]
[1737258213990,0.2295281,104750.0,104740.0,0.11315902]
[1737258215783,0.3249931,104750.0,104740.0,0.11315902]
[1737258216226,0.2295281,104750.0,104740.0,0.11315902]
[1737258218285,0.32206713,104750.0,104740.0,0.11315902]
[1737258218490,0.32206713,104750.0,104740.0,0.01768502]
[1737258218697,0.32206713,104750.0,104740.0,0.11315902]
[1737258219508,0.32206713,104750.0,104740.0,0.01768502]
[1737258219894,0.27034098,104750.0,104740.0,0.01768502]
[1737258221413,0.30771907,104750.0,104740.0,0.01768502]
[1737258222160,0.22206713,104750.0,104740.0,0.01768502]
[1737258223739,0.27034098,104750.0,104740.0,0.01768502]
[1737258227708,0.27076888,104750.0,104740.0,0.01768502]
[1737258238023,0.37076888,104750.0,104740.0,0.01768502]
[1737258238176,0.22249503,104750.0,104740.0,0.01768502]
[1737258240380,0.22249503,104750.0,104740.0,0.03402666]
[1737258241547,0.22249503,104750.0,104740.0,0.01768502]
[1737258244067,0.27076888,104750.0,104740.0,0.01768502]
[1737258245901,0.27076888,104750.0,104740.0,0.02067098]
[1737258249872,0.37000969,104750.0,104740.0,0.02067098]
[1737258250493,0.45566163,104750.0,104740.0,0.02067098]
[1737258251817,0.58413955,104750.0,104740.0,0.02067098]
[1737258252778,0.75544344,104750.0,104740.0,0.02067098]
[1737258253153,0.75544344,104750.0,104740.0,0.0104306]
[1737258253885,0.60792878,104750.0,104740.0,0.0104306]
[1737258254060,0.70792878,104750.0,104740.0,0.1059046]
[1737258254265,0.61246378,104750.0,104740.0,0.1059046]
[1737258254670,0.51246378,104750.0,104740.0,0.15417845]
[1737258254887,0.08003003,104750.0,104740.0,0.10291864]
[1737258255031,0.18003003,104750.0,104740.0,0.10291864]
[1737258255616,0.18003003,104750.0,104740.0,0.11314689]
[1737258260689,0.08003003,104750.0,104740.0,0.11314689]
[1737258260895,0.18003003,104750.0,104740.0,0.11314689]
[1737258263382,0.27549503,104750.0,104740.0,0.11314689]
[1737258263805,0.27549503,104750.0,104740.0,0.11261922]
[1737258263999,0.08003003,104750.0,104740.0,0.11314689]
[1737258265803,0.18003003,104750.0,104740.0,0.11314689]
[1737258267846,0.27549503,104750.0,104740.0,0.11314689]
[1737258268665,0.18003003,104750.0,104740.0,0.11314689]
[1737258269345,0.08003003,104750.0,104740.0,0.11314689]
[1737258277331,0.17549503,104750.0,104740.0,0.11314689]
[1737258286699,0.08003003,104750.0,104740.0,0.11314689]
[1737258291789,0.1504279,104750.0,104740.0,0.4116162]
[1737258291999,0.1504279,104750.0,104740.0,0.4589354]
[1737258292194,0.1504279,104750.0,104740.0,0.5223354]
[1737258292396,0.1504279,104750.0,104740.0,0.47406155]
[1737258293016,0.1504279,104750.0,104740.0,0.60826747]
[1737258293402,0.1504279,104750.0,104740.0,0.55999362]
[1737258294018,0.1504279,104750.0,104740.0,0.68889173]
[1737258295401,0.0004279,104750.0,104740.0,0.68889173]
[1737258295600,0.1504279,104750.0,104740.0,0.68889173]
[1737258296508,0.08565194,104770.0,104760.0,0.095456]
[1737258296690,0.08565194,104770.0,104760.0,0.57132948]
[1737258296887,0.08565194,104770.0,104760.0,0.72773654]
[1737258297366,0.08565194,104770.0,104760.0,0.76096479]
[1737258297899,0.000428,104780.0,104760.0,0.97125107]
[1737258298102,0.000428,104780.0,104770.0,0.29786974]
[1737258298313,0.000428,104780.0,104770.0,0.3901196]
[1737258298513,0.000428,104780.0,104770.0,0.36031551]
[1737258299141,0.000428,104780.0,104770.0,0.37054376]
[1737258299340,0.000428,104780.0,104770.0,0.58478668]
[1737258300159,0.000428,104780.0,104770.0,0.53651283]
[1737258300370,0.0004281,104790.0,104780.0,0.118438]
[1737258300568,1e-07,104790.0,104780.0,1.02890668]
[1737258300779,1e-07,104790.0,104780.0,1.34011971]
[1737258301172,1e-07,104790.0,104780.0,1.26215305]
[1737258301571,1e-07,104790.0,104780.0,1.26229647]
[1737258301733,1e-07,104790.0,104780.0,1.73400782]
[1737258302180,1e-07,104790.0,104780.0,1.74423607]
[1737258302377,1e-07,104790.0,104780.0,1.48676764]
[1737258302991,1e-07,104790.0,104780.0,1.78562658]
[1737258303365,1e-07,104790.0,104780.0,1.76252598]
[1737258303803,1e-07,104790.0,104780.0,1.8478607]
[1737258304224,1e-07,104790.0,104780.0,1.84927247]
[1737258304457,1e-07,104790.0,104780.0,1.63502955]
[1737258305752,1e-07,104790.0,104780.0,1.70847665]
[1737258306272,1e-07,104790.0,104780.0,1.53770011]
[1737258307077,1e-07,104790.0,104780.0,1.40961771]
[1737258308251,1e-07,104790.0,104780.0,1.41529771]
[1737258308963,1e-07,104790.0,104780.0,1.46993301]
[1737258309606,1e-07,104790.0,104780.0,1.41145301]
[1737258309810,1e-07,104790.0,104780.0,1.14031589]
[1737258310165,1e-07,104790.0,104780.0,1.14638267]
[1737258318466,1e-07,104790.0,104780.0,0.59778267]
[1737258320695,1e-07,104790.0,104780.0,1.21982977]
[1737258321092,1e-07,104790.0,104780.0,1.22072836]
[1737258321293,1e-07,104790.0,104780.0,1.31392836]
[1737258322579,1e-07,104790.0,104780.0,0.85066308]
[1737258323667,1e-07,104790.0,104780.0,0.76532836]
[1737258323946,1e-07,104790.0,104780.0,0.73552836]
[1737258324153,1e-07,104790.0,104780.0,0.67212836]
[1737258324792,1e-07,104790.0,104780.0,1.22072836]
[1737258327083,1e-07,104790.0,104780.0,1.30606308]
[1737258327444,1e-07,104790.0,104780.0,1.3357159]
[1737258327797,1e-07,104790.0,104780.0,1.30606308]
[1737258328091,1e-07,104790.0,104780.0,1.25038113]
[1737258329460,0.1235,104810.0,104800.0,0.245419]
[1737258329666,0.1235,104810.0,104800.0,0.42551877]
[1737258330091,0.2735,104810.0,104800.0,0.20207167]
[1737258330450,0.2735,104810.0,104800.0,0.22864893]
[1737258332880,0.2739279,104810.0,104800.0,0.22864893]
[1737258333627,0.2739279,104810.0,104800.0,0.36229992]
[1737258334812,0.2739279,104810.0,104800.0,0.43574702]
[1737258335967,0.2739279,104810.0,104800.0,0.36229992]
[1737258336423,0.2739279,104810.0,104800.0,0.37202441]
[1737258341724,0.3693379,104810.0,104800.0,0.2727836]
[1737258341925,0.2739279,104810.0,104800.0,0.2727836]
[1737258343197,0.2739279,104810.0,104800.0,0.35811832]
[1737258347440,0.2739279,104810.0,104800.0,0.45735913]
[1737258347668,0.2739279,104810.0,104800.0,0.53080623]
[1737258347923,0.2739279,104810.0,104800.0,0.54715355]
[1737258348351,0.2739279,104810.0,104800.0,0.52057798]
[1737258348766,0.2739279,104810.0,104800.0,0.96023274]
[1737258349201,0.2739279,104810.0,104800.0,0.97044566]
[1737258349357,0.1239279,104810.0,104800.0,1.06023435]
[1737258349793,0.1239279,104810.0,104800.0,0.84599143]
[1737258350432,0.1239279,104810.0,104800.0,0.82964984]
[1737258351045,0.0785279,104810.0,104800.0,0.82964984]
[1737258351294,0.0004279,104810.0,104800.0,0.82964984]
[1737258352523,0.0004279,104810.0,104800.0,0.81943692]
[1737258352702,0.0004279,104810.0,104800.0,0.82026272]
[1737258353133,0.0004279,104810.0,104800.0,0.83047402]
[1737258356018,0.0004279,104810.0,104800.0,0.10666504]
[1737258356223,0.0004279,104810.0,104800.0,0.28216512]
[1737258356468,0.0004279,104810.0,104800.0,0.28121114]
[1737258357138,0.0004279,104810.0,104800.0,0.36692082]
[1737258357517,0.0004279,104810.0,104800.0,1.056659]
[1737258358313,0.0004279,104810.0,104800.0,0.993259]
[1737258358528,0.0004279,104810.0,104800.0,1.143259]
[1737258359065,0.0004279,104810.0,104800.0,1.27182352]
[1737258359773,0.0004279,104810.0,104800.0,1.11569698]
[1737258361569,0.0004279,104810.0,104800.0,1.0299873]
[1737258363831,0.0004279,104810.0,104800.0,1.11562648]
[1737258364111,0.10463574,104830.0,104810.0,0.15]
[1737258364290,0.10463574,104830.0,104820.0,0.20322138]
[1737258365706,0.10463574,104830.0,104820.0,0.2033648]
[1737258367527,0.10463574,104830.0,104820.0,0.2768119]
[1737258368490,0.10506364,104830.0,104820.0,0.28697909]
[1737258373727,0.10506364,104830.0,104820.0,0.29652449]
[1737258374707,0.10506364,104830.0,104820.0,0.44652449]
[1737258375606,0.0004279,104830.0,104820.0,0.44652449]
[1737258375759,0.0004279,104830.0,104820.0,1.22469813]
[1737258376164,0.0004279,104830.0,104820.0,1.22510912]
[1737258376576,0.0004279,104830.0,104820.0,1.15166202]
[1737258376780,0.0004279,104830.0,104820.0,1.22510912]
[1737258377473,0.0004279,104830.0,104820.0,1.61055945]
[1737258378506,0.0004279,104830.0,104820.0,1.53711235]
[1737258378707,0.0004279,104830.0,104820.0,1.36586572]
[1737258380534,0.0004279,104830.0,104820.0,1.36676389]
[1737258381639,0.0004279,104830.0,104820.0,1.23819937]
[1737258384434,0.0004279,104830.0,104820.0,0.68959937]
[1737258385676,0.0004279,104830.0,104820.0,0.60396019]
[1737258387497,0.0004279,104830.0,104820.0,0.62685983]
[1737258388221,0.0004279,104830.0,104820.0,0.71249901]
[1737258390284,0.0004279,104830.0,104820.0,1.26109901]
[1737258393709,0.0004279,104830.0,104820.0,1.38966353]
[1737258393866,0.0004279,104830.0,104820.0,1.41937132]
[1737258394265,0.0004279,104830.0,104820.0,1.38966353]
[1737258394670,0.0004279,104830.0,104820.0,1.23353699]
[1737258394929,0.0004279,104830.0,104820.0,1.26324776]
[1737258396403,0.0004279,104830.0,104820.0,1.43449439]
[1737258397504,0.0004279,104830.0,104820.0,0.88589439]
[1737258398089,0.0004279,104830.0,104820.0,0.93406776]
[1737258398294,0.0004279,104830.0,104820.0,0.88589439]
[1737258398696,0.0004279,104830.0,104820.0,0.80025521]
[1737258399554,0.0004279,104830.0,104820.0,1.34885521]
[1737258399885,0.0004279,104830.0,104820.0,1.56295316]
[1737258404518,9e-07,104830.0,104820.0,1.61746201]
[1737258404707,9e-07,104830.0,104820.0,1.64728582]
[1737258404857,0.0003891,104840.0,104830.0,0.245392]
[1737258405053,0.0003891,104840.0,104830.0,1.17680475]
[1737258405279,0.0003891,104840.0,104830.0,1.18414883]
[1737258405790,0.0003891,104840.0,104830.0,1.19431602]
[1737258407112,0.0003891,104840.0,104830.0,1.45123357]
[1737258407331,0.0003891,104840.0,104830.0,1.4349392]
[1737258408973,0.0003891,104840.0,104830.0,1.5468392]
[1737258409146,1e-07,104840.0,104830.0,1.55741344]
[1737258410290,0.0004281,104860.0,104850.0,0.34172074]
[1737258410468,0.0004281,104860.0,104850.0,1.14568809]
[1737258410676,0.0004281,104860.0,104850.0,1.14703959]
[1737258411075,0.0004281,104860.0,104850.0,1.1767123]
[1737258411410,0.0004281,104860.0,104850.0,1.2045361]
[1737258411621,0.0004281,104860.0,104850.0,1.58871831]
[1737258411757,0.0004281,104860.0,104850.0,1.61837583]
[1737258411979,1e-07,104860.0,104850.0,1.61837583]
[1737258412586,0.1207601,104870.0,104860.0,0.793965]
[1737258412770,0.1207601,104870.0,104860.0,1.00188136]
[1737258413811,0.12126101,104870.0,104860.0,1.39623077]
[1737258414145,0.12126101,104870.0,104860.0,1.39756408]
[1737258414488,0.12126101,104870.0,104860.0,1.36790656]
[1737258415043,0.12126101,104870.0,104860.0,1.49579438]
[1737258415309,0.12126101,104870.0,104860.0,1.50304749]
[1737258417315,0.12126101,104870.0,104860.0,1.37482948]
[1737258418679,0.12126101,104870.0,104860.0,1.39376042]
[1737258423338,0.07596101,104870.0,104860.0,1.39376042]
[1737258425313,0.07596101,104870.0,104860.0,1.31474239]
[1737258425492,0.12566101,104870.0,104860.0,1.39376042]
[1737258426029,0.12566101,104870.0,104860.0,1.38808042]
[1737258426254,0.12566101,104870.0,104860.0,1.39376042]
[1737258426761,0.37101701,104870.0,104860.0,0.82554645]
[1737258426968,0.61790393,104870.0,104860.0,0.42767017]
[1737258427167,0.47101701,104870.0,104860.0,0.42767017]
[1737258427598,0.47101701,104870.0,104860.0,0.52393313]
[1737258427989,0.47144461,104870.0,104860.0,0.52393313]
[1737258428660,0.47144461,104870.0,104860.0,0.43871657]
[1737258429675,0.47144461,104870.0,104860.0,0.11501657]
[1737258429874,0.37144461,104870.0,104860.0,0.01965157]
[1737258430094,0.37608861,104870.0,104860.0,0.11501657]